lending/lending_fUSD_20250114
["ID","MTS","AMOUNT","RATE_DAILY","PERIOD"]
[348910010,1736871056789,-2904.81,0.00010787,2]
[348910011,1736871056799,-4220.93,0.00010787,2]
[348910012,1736871056808,-2444.68,0.00010787,2]
[348910013,1736871056819,-500.0,0.00010787,2]
[348910014,1736871056829,-1614.87,0.00010787,2]
[348910015,1736871056839,-4028.3,0.00010787,2]
[348910016,1736871056849,-1618.39,0.00010787,2]
[348910017,1736871056860,-886.17,0.00010787,2]
[348910018,1736871056870,-1130.9,0.00010787,2]
[348910019,1736871056879,-500.0,0.00010787,2]
[348910020,1736871056889,-500.0,0.00010787,2]
[348910021,1736871056899,-729.07,0.00010787,2]
[348910022,1736871056909,-1516.25,0.00010788,2]
[348910023,1736871056921,-1166.86,0.00010788,2]
[348910024,1736871056932,-866.05,0.00010788,2]
[348910025,1736871056942,-2397.33,0.00010788,2]
[348910026,1736871056953,-2203.87,0.00010788,2]
[348910027,1736871056963,-916.24,0.00010788,2]
[348910028,1736871056974,-3485.69,0.00010788,2]
[348910029,1736871056984,-1636.73,0.00010788,2]
[348910030,1736871056994,-1321.96,0.00010788,2]
[348910031,1736871057004,-3444.85,0.00010788,2]
[348910032,1736871057014,-10463.04,0.00010788,2]
[348910033,1736871057024,-500.0,0.00010788,2]
[348910034,1736871057035,-1225.56,0.00010788,2]
[348910035,1736871057045,-1265.15,0.00010788,2]
[348910036,1736871057054,-1679.51,0.00010788,2]
[348910037,1736871057064,-1588.58,0.00010788,2]
[348910038,1736871057073,-4193.47,0.00010788,2]
[348910039,1736871057082,-2969.84,0.00010788,2]
[348910040,1736871057092,-1960.51,0.00010788,2]
[348910041,1736871057101,-3425.16,0.00010788,2]
[348910042,1736871057110,-683.13,0.00010788,2]
[348910043,1736871057120,-1742.27,0.00010788,2]
[348910044,1736871057130,-2066.36,0.00010788,2]
[348910045,1736871057139,-936.52,0.00010788,2]
[348910046,1736871057149,-1668.95,0.00010788,2]
[348910047,1736871057158,-2624.9,0.00010788,2]
[348910048,1736871057168,-1793.98,0.00010789,2]
[348910049,1736871057178,-4746.78,0.00010789,2]
[348910050,1736871057188,-2018.85,0.00010789,2]
[348910051,1736871057199,-500.0,0.00010789,2]
[348910052,1736871057209,-373.87980176,0.00010789,2]
[348910053,1736871057219,-3920.54,0.00010789,2]
[348910054,1736871057229,-500.0,0.00010789,2]
[348910055,1736871057238,-500.0,0.00010789,2]
[348910056,1736871057247,-500.0,0.00010789,2]
[348910057,1736871057257,-583.25,0.00010789,2]
[348910058,1736871057266,-500.0,0.00010789,2]
[348910059,1736871057275,-856.09,0.00010789,2]
[348910060,1736871057285,-1159.82,0.00010789,2]
[348910061,1736871057294,-1932.24,0.00010789,2]
[348910062,1736871057303,-526.42,0.00010789,2]
[348910063,1736871057313,-862.17,0.00010789,2]
[348910064,1736871057322,-1142.27,0.00010789,2]
[348910065,1736871057331,-500.0,0.00010789,2]
[348910066,1736871057341,-1780.43,0.00010789,2]
[348910067,1736871057351,-500.0,0.00010789,2]
[348910068,1736871057360,-500.0,0.00010789,2]
[348910069,1736871057370,-232.05474402,0.00010789,2]
[348910070,1736871057379,-500.0,0.00010789,2]
[348910071,1736871057390,-500.0,0.00010789,2]
[348910072,1736871057400,-500.0,0.00010789,2]
[348910073,1736871057410,-500.0,0.00010789,2]
[348910074,1736871057420,-1149.97,0.00010789,2]
[348910075,1736871057430,-500.0,0.00010789,2]
[348910076,1736871057439,-1199.59,0.00010789,2]
[348910077,1736871057449,-1173.44,0.00010789,2]
[348910078,1736871057459,-500.0,0.00010789,2]
[348910079,1736871057469,-500.0,0.00010789,2]
[348910080,1736871057478,-500.0,0.00010789,2]
[348910081,1736871057488,-500.0,0.00010789,2]
[348910082,1736871057498,-500.0,0.00010789,2]
[348910083,1736871057508,-1112.26,0.00010789,2]
[348910084,1736871057517,-500.0,0.00010789,2]
[348910085,1736871057527,-500.0,0.00010789,2]
[348910086,1736871057537,-500.0,0.00010789,2]
[348910087,1736871057547,-2438.93,0.00010789,2]
[348910088,1736871057556,-500.0,0.00010789,2]
[348910089,1736871057566,-500.0,0.00010789,2]
[348910090,1736871057576,-500.0,0.00010789,2]
[348910091,1736871057586,-1224.09,0.00010789,2]
[348910092,1736871057595,-500.0,0.00010789,2]
[348910093,1736871057606,-500.0,0.00010789,2]
[348910094,1736871057616,-500.0,0.00010789,2]
[348910095,1736871057625,-500.0,0.00010789,2]
[348910096,1736871057635,-1303.65,0.00010789,2]
[348910097,1736871057645,-500.0,0.00010789,2]
[348910098,1736871057654,-500.0,0.00010789,2]
[348910099,1736871057664,-500.0,0.00010789,2]
[348910100,1736871057674,-603.91,0.00010789,2]
[348910101,1736871057684,-1278.65,0.00010789,2]
[348910102,1736871057694,-500.0,0.00010789,2]
[348910103,1736871057707,-500.0,0.00010789,2]
[348910104,1736871057716,-500.0,0.00010789,2]
[348910105,1736871057726,-508.79242213,0.00010789,2]
[348910106,1736871057736,-1228.06,0.00010789,2]
[348910107,1736871057745,-500.0,0.00010789,2]
[348910108,1736871057755,-500.0,0.00010789,2]
[348910109,1736871057764,-500.0,0.00010789,2]
[348910110,1736871057774,-1408.95,0.00010789,2]
[348910111,1736871057783,-500.0,0.00010789,2]
[348910112,1736871057793,-500.0,0.00010789,2]
[348910113,1736871057803,-342.87623164,0.00010789,2]
[348910114,1736871057813,-500.0,0.00010789,2]
[348910115,1736871057823,-908.24,0.00010789,2]
[348910116,1736871057832,-500.0,0.00010789,2]
[348910117,1736871057842,-500.0,0.00010789,2]
[348910118,1736871057851,-1406.37,0.00010789,2]
[348910119,1736871057861,-500.0,0.00010789,2]
[348910120,1736871057871,-1171.53,0.00010789,2]
[348910121,1736871057881,-884.27,0.00010789,2]
[348910122,1736871057890,-500.0,0.00010789,2]
[348910123,1736871057900,-500.0,0.00010789,2]
[348910124,1736871057910,-647.63,0.00010789,2]
[348910125,1736871057922,-500.0,0.00010789,2]
[348910126,1736871057932,-500.0,0.00010789,2]
[348910127,1736871057942,-1113.11,0.00010789,2]
[348910128,1736871057956,-991.47,0.00010789,2]
[348910129,1736871057967,-500.0,0.00010789,2]
[348910130,1736871057978,-1161.34,0.00010789,2]
[348910131,1736871057988,-1071.23,0.00010789,2]
[348910132,1736871057998,-789.98,0.00010789,2]
[348910133,1736871058008,-500.0,0.00010789,2]
[348910134,1736871058018,-1106.63,0.00010789,2]
[348910135,1736871058028,-500.0,0.00010789,2]
[348910136,1736871058038,-1112.53,0.00010789,2]
[348910137,1736871058048,-500.0,0.00010789,2]
[348910138,1736871058057,-500.0,0.00010789,2]
[348910139,1736871058067,-1838.88,0.00010789,2]
[348910140,1736871058076,-932.16,0.00010789,2]
[348910141,1736871058087,-500.0,0.00010789,2]
[348910142,1736871058098,-500.0,0.00010789,2]
[348910143,1736871058107,-500.0,0.00010789,2]
[348910144,1736871058117,-500.0,0.00010789,2]
[348910145,1736871058127,-500.0,0.00010789,2]
[348910146,1736871058136,-500.0,0.00010789,2]
[348910147,1736871058146,-976.4,0.00010789,2]
[348910148,1736871058155,-500.0,0.00010789,2]
[348910149,1736871058165,-500.0,0.00010789,2]
[348910150,1736871058175,-1337.66,0.00010789,2]
[348910151,1736871058185,-500.0,0.00010789,2]
[348910152,1736871058195,-572.39,0.00010789,2]
[348910153,1736871058208,-758.83,0.00010789,2]
[348910154,1736871058219,-500.0,0.00010789,2]
[348910155,1736871058229,-1232.64,0.00010789,2]
[348910156,1736871058240,-500.0,0.00010789,2]
[348910157,1736871058250,-1161.72,0.00010789,2]
[348910158,1736871058260,-500.0,0.00010789,2]
[348910159,1736871058269,-1402.03,0.00010789,2]
[348910160,1736871058279,-500.0,0.00010789,2]
[348910161,1736871058289,-500.0,0.00010789,2]
[348910162,1736871058299,-500.0,0.00010789,2]
[348910163,1736871058308,-500.0,0.00010789,2]
[348910164,1736871058318,-1098.11,0.00010789,2]
[348910165,1736871058327,-3138.43,0.00010789,2]
[348910166,1736871058337,-500.0,0.00010789,2]
[348910167,1736871058346,-986.15,0.00010789,2]
[348910168,1736871058355,-500.0,0.00010789,2]
[348910169,1736871058365,-659.72,0.00010789,2]
[348910170,1736871058375,-500.0,0.00010789,2]
[348910171,1736871058385,-500.0,0.00010789,2]
[348910172,1736871058396,-500.0,0.00010789,2]
[348910173,1736871058405,-500.0,0.00010789,2]
[348910174,1736871058415,-500.0,0.00010789,2]
[348910175,1736871058426,-500.0,0.00010789,2]
[348910176,1736871058436,-500.0,0.00010789,2]
[348910177,1736871058446,-1032.34,0.00010789,2]
[348910178,1736871058458,-3452.91,0.00010789,2]
[348910179,1736871058467,-500.0,0.00010789,2]
[348910180,1736871058477,-500.0,0.00010789,2]
[348910181,1736871058486,-1606.61,0.00010789,2]
[348910182,1736871058496,-500.0,0.00010789,2]
[348910183,1736871058506,-500.0,0.00010789,2]
[348910184,1736871058515,-1003.31,0.00010789,2]
[348910185,1736871058525,-979.54,0.00010789,2]
[348910186,1736871058535,-756.85,0.00010789,2]
[348910187,1736871058544,-1623.91,0.00010789,2]
[348910188,1736871058554,-4038.71,0.00010789,2]
[348910189,1736871058564,-500.0,0.00010789,2]
[348910190,1736871058573,-507.27,0.00010789,2]
[348910191,1736871058582,-500.0,0.00010789,2]
[348910192,1736871058592,-500.0,0.00010789,2]
[348910193,1736871058602,-500.0,0.00010789,2]
[348910194,1736871058611,-1966.64,0.00010789,2]
[348910195,1736871058621,-500.0,0.00010789,2]
[348910196,1736871058631,-986.12,0.00010789,2]
[348910197,1736871058641,-500.0,0.00010789,2]
[348910198,1736871058650,-1121.12,0.0001079,2]
[348910199,1736871058660,-500.0,0.0001079,2]
[348910200,1736871058669,-2873.51,0.0001079,2]
[348910201,1736871058679,-2691.6,0.0001079,2]
[348910202,1736871058689,-3648.35,0.0001082,2]
[348910203,1736871058698,-500.0,0.00010821,2]
[348910204,1736871058708,-1024.77,0.00010821,2]
[348910205,1736871058718,-564.80212402,0.00010829,2]
[348910206,1736871058727,-152.17950909,0.00010842,2]
[348910207,1736871058737,-535.76,0.00010865,2]
[348910208,1736871058746,-151.0,0.000109,2]
[348910209,1736871058756,-20000.0,0.00010914,2]
[348910210,1736871058766,-429.35633264,0.00010932,2]
[348910211,1736871058776,-1760.13569846,0.00010934,2]
[348910212,1736871058786,-1253.5049324,0.00010945,2]
[348910213,1736871058796,-151.0,0.00010953,2]
[348910214,1736871058805,-2980.66,0.00010953,2]
[348910215,1736871058815,-2856.47,0.00010953,2]
[348910216,1736871058826,-500.0,0.00010953,2]
[348910217,1736871058835,-300.17657699,0.00010953,2]
[348910218,1736871058844,-758.96,0.00010953,2]
[348910219,1736871058855,-500.0,0.00010953,2]
[348910220,1736871058865,-500.0,0.00010953,2]
[348910221,1736871058874,-500.0,0.00010953,2]
[348910222,1736871058883,-500.0,0.00010953,2]
[348910223,1736871058893,-500.0,0.00010953,2]
[348910224,1736871058902,-500.0,0.00010953,2]
[348910225,1736871058911,-500.0,0.00010953,2]
[348910226,1736871058924,-909.28,0.00010953,2]
[348910227,1736871058935,-500.0,0.00010953,2]
[348910228,1736871058945,-500.0,0.00010953,2]
[348910229,1736871058958,-1419.13,0.00010953,2]
[348910230,1736871058969,-580.83,0.00010953,2]
[348910231,1736871059139,-1079.36,0.00010953,2]
[348910232,1736871059149,-500.0,0.00010953,2]
[348910233,1736871059160,-1965.67,0.00010953,2]
[348910234,1736871059170,-781.46,0.00010953,2]
[348910235,1736871059179,-770.01,0.00010953,2]
[348910236,1736871059188,-846.81,0.00010953,2]
[348910237,1736871059197,-500.0,0.00010953,2]
[348910238,1736871059208,-2006.35,0.00010953,2]
[348910239,1736871059218,-654.46,0.00010953,2]
[348910240,1736871059228,-500.0,0.00010953,2]
[348910241,1736871059240,-901.18,0.00010953,2]
[348910242,1736871059250,-500.0,0.00010953,2]
[348910243,1736871059262,-500.0,0.00010953,2]
[348910244,1736871059272,-1306.8,0.00010953,2]
[348910245,1736871059285,-500.0,0.00010953,2]
[348910246,1736871059294,-500.0,0.00010953,2]
[348910247,1736871059303,-500.0,0.00010953,2]
[348910248,1736871059312,-500.0,0.00010953,2]
[348910249,1736871059322,-500.0,0.00010953,2]
[348910250,1736871059331,-3230.9,0.00010953,2]
[348910251,1736871059340,-500.0,0.00010953,2]
[348910252,1736871059350,-635.34,0.00010953,2]
[348910253,1736871059360,-898.98,0.00010953,2]
[348910254,1736871059370,-2567.78,0.00010953,2]
[348910255,1736871059380,-1137.06,0.00010953,2]
[348910256,1736871059390,-3490.51,0.00010953,2]
[348910257,1736871059399,-500.0,0.00010953,2]
[348910258,1736871059409,-500.0,0.00010953,2]
[348910259,1736871059418,-500.0,0.00010953,2]
[348910260,1736871059428,-4025.46,0.00010953,2]
[348910261,1736871059438,-500.0,0.00010953,2]
[348910262,1736871059450,-1007.3,0.00010953,2]
[348910263,1736871059459,-750.73,0.00010953,2]
[348910264,1736871059469,-1091.89,0.00010953,2]
[348910265,1736871059479,-1201.57,0.00010953,2]
[348910266,1736871059489,-500.0,0.00010953,2]
[348910267,1736871059499,-1990.98,0.00010953,2]
[348910268,1736871059508,-500.0,0.00010953,2]
[348910269,1736871059519,-500.0,0.00010953,2]
[348910270,1736871059528,-500.0,0.00010953,2]
[348910271,1736871059538,-4203.17,0.00010953,2]
[348910272,1736871059548,-1232.44,0.00010953,2]
[348910273,1736871059558,-794.71,0.00010953,2]
[348910274,1736871059568,-500.0,0.00010953,2]
[348910275,1736871059578,-500.0,0.00010953,2]
[348910276,1736871059588,-500.0,0.00010953,2]
[348910277,1736871059598,-500.0,0.00010953,2]
[348910278,1736871059607,-747.81,0.00010953,2]
[348910279,1736871059617,-500.0,0.00010953,2]
[348910280,1736871059627,-867.01,0.00010953,2]
[348910281,1736871059636,-500.0,0.00010953,2]
[348910282,1736871059646,-1686.06,0.00010953,2]
[348910283,1736871059656,-780.53,0.00010953,2]
[348910284,1736871059666,-500.0,0.00010953,2]
[348910285,1736871059676,-825.75,0.00010953,2]
[348910286,1736871059687,-1495.35,0.00010953,2]
[348910287,1736871059697,-2775.69,0.00010953,2]
[348910288,1736871059710,-680.38,0.00010953,2]
[348910289,1736871059720,-350.67536552,0.00010954,2]
[348910290,1736871059730,-500.0,0.00010954,2]
[348910291,1736871059740,-500.0,0.00010954,2]
[348910292,1736871059749,-500.0,0.00010954,2]
[348910293,1736871059759,-500.0,0.00010954,2]
[348910294,1736871059769,-500.0,0.00010954,2]
[348910295,1736871059778,-500.0,0.00010954,2]
[348910296,1736871059788,-500.0,0.00010954,2]
[348910297,1736871059798,-500.0,0.00010954,2]
[348910298,1736871059807,-151.0,0.00010954,2]
[348910299,1736871059816,-500.0,0.00010954,2]
[348910300,1736871059826,-164.74548102,0.00010954,2]
[348910301,1736871059836,-500.0,0.00010954,2]
[348910302,1736871059845,-500.0,0.00010954,2]
[348910303,1736871059855,-500.0,0.00010954,2]
[348910304,1736871059865,-500.0,0.00010954,2]
[348910305,1736871059874,-500.0,0.00010954,2]
[348910306,1736871059884,-500.0,0.00010954,2]
[348910307,1736871059894,-500.0,0.00010954,2]
[348910308,1736871059903,-500.0,0.00010954,2]
[348910309,1736871059913,-500.0,0.00010954,2]
[348910310,1736871059926,-500.0,0.00010954,2]
[348910311,1736871059939,-500.0,0.00010954,2]
[348910312,1736871059957,-500.0,0.00010954,2]
[348910313,1736871059967,-500.0,0.00010954,2]
[348910314,1736871059977,-500.0,0.00010954,2]
[348910315,1736871059987,-500.0,0.00010954,2]
[348910316,1736871059998,-500.0,0.00010954,2]
[348910317,1736871060008,-989.66,0.00010954,2]
[348910318,1736871060018,-500.0,0.00010954,2]
[348910319,1736871060028,-500.0,0.00010954,2]
[348910320,1736871060038,-500.0,0.00010954,2]
[348910321,1736871060047,-500.0,0.00010954,2]
[348910322,1736871060057,-1178.11,0.00010954,2]
[348910323,1736871060067,-500.0,0.00010954,2]
[348910324,1736871060078,-1018.69,0.00010954,2]
[348910325,1736871060088,-500.0,0.00010954,2]
[348910326,1736871060098,-500.0,0.00010954,2]
[348910327,1736871060108,-1169.13,0.00010954,2]
[348910328,1736871060118,-500.0,0.00010954,2]
[348910329,1736871060127,-500.0,0.00010954,2]
[348910330,1736871060137,-500.0,0.00010954,2]
[348910331,1736871060147,-761.68,0.00010954,2]
[348910332,1736871060157,-500.0,0.00010954,2]
[348910333,1736871060167,-500.0,0.00010954,2]
[348910334,1736871060177,-500.0,0.00010954,2]
[348910335,1736871060188,-500.0,0.00010958,2]
[348910336,1736871060197,-500.0,0.00010958,2]
[348910337,1736871060210,-500.0,0.00010958,2]
[348910338,1736871060220,-518.0,0.00010958,2]
[348910339,1736871060231,-999.0,0.00010958,2]
[348910340,1736871060241,-3934.21,0.00010959,2]
[348910341,1736871060251,-224.539635,0.00010959,2]
[348910342,1736871060260,-224.539635,0.00010959,2]
[348910343,1736871060270,-224.539635,0.00010959,2]
[348910344,1736871060279,-224.539635,0.00010959,2]
[348910345,1736871060290,-224.539635,0.00010959,2]
[348910346,1736871060299,-224.539635,0.00010959,2]
[348910347,1736871060309,-3611.11,0.00010959,2]
[348910348,1736871060319,-150.0,0.00010959,2]
[348910349,1736871060328,-2248.03,0.00010959,2]
[348910350,1736871060338,-152.17950909,0.00010999,2]
[348910351,1736871060347,-300.0,0.00010999,2]
[348910352,1736871060357,-300.0,0.00010999,2]
[348910353,1736871060367,-300.0,0.00010999,2]
[348910354,1736871060376,-300.0,0.00010999,2]
[348910355,1736871060386,-174.67658558,0.00010999,2]
[348910356,1736871060397,-300.0,0.00010999,2]
[348910357,1736871060407,-666.0,0.00010999,2]
[348910358,1736871060417,-300.0,0.00010999,2]
[348910359,1736871060427,-666.0,0.00010999,2]
[348910360,1736871060437,-300.0,0.00010999,2]
[348910361,1736871060447,-671.79229376,0.00010999,2]
[348910362,1736871060459,-300.0,0.00010999,2]
[348910363,1736871060469,-300.0,0.00010999,2]
[348910364,1736871060479,-300.0,0.00010999,2]
[348910365,1736871060489,-666.0,0.00010999,2]
[348910366,1736871060498,-300.0,0.00010999,2]
[348910367,1736871060508,-300.0,0.00010999,2]
[348910368,1736871060517,-300.0,0.00010999,2]
[348910369,1736871060526,-300.0,0.00010999,2]
[348910370,1736871060535,-300.0,0.00010999,2]
[348910371,1736871060545,-300.0,0.00010999,2]
[348910372,1736871060554,-146802.13539368,0.00011,2]
[348910373,1736871060563,-121556.31676455,0.00011,2]
[348910374,1736871060572,-36463.38053552,0.00011,2]
[348910375,1736871060582,-49166.0788695,0.00011,2]
[348910376,1736871060593,-600.0,0.00011,2]
[348910377,1736871060603,-202.8,0.00011,2]
[348910378,1736871060613,-2982.96633192,0.00011,2]
[348910379,1736871060622,-2000.0,0.00011,2]
[348910380,1736871060632,-200.0,0.00011,2]
[348910381,1736871060642,-151.0,0.00011,2]
[348910382,1736871060651,-198.32604,0.00011,2]
[348910383,1736871060660,-200.0,0.00011,2]
[348910384,1736871060670,-550.0,0.00011,2]
[348910385,1736871060679,-500.0,0.00011054,2]
[348910386,1736871060689,-500.0,0.00011054,2]
[348910387,1736871060698,-1181.698318,0.00011054,2]
[348910388,1736871060709,-500.0,0.00011054,2]
[348910389,1736871060718,-1134.687651,0.00011054,2]
[348910390,1736871060728,-5067.93,0.00011054,2]
[348910391,1736871060739,-1401.93,0.00011054,2]
[348910392,1736871060749,-772.78,0.00011054,2]
[348910393,1736871060759,-500.0,0.00011054,2]
[348910394,1736871060770,-500.0,0.00011054,2]
[348910395,1736871060779,-5155.07,0.00011054,2]
[348910396,1736871060789,-2349.38,0.00011054,2]
[348910397,1736871060798,-500.0,0.00011054,2]
[348910398,1736871060807,-603.01,0.00011054,2]
[348910399,1736871060816,-457.9884251,0.00011054,2]
[348910400,1736871060826,-11226.25,0.00011055,2]
[348910401,1736871060835,-1592.98,0.00011055,2]
[348910402,1736871060844,-1029.22,0.00011055,2]
[348910403,1736871060854,-3058.42,0.00011055,2]
[348910404,1736871060863,-500.0,0.00011055,2]
[348910405,1736871060872,-1564.97,0.00011055,2]
[348910406,1736871060882,-2074.04,0.00011055,2]
[348910407,1736871060891,-500.0,0.00011055,2]
[348910408,1736871060901,-1000.0,0.00011055,2]
[348910409,1736871060910,-500.0,0.00011061,2]
[348910410,1736871060921,-2904.81,0.00011061,2]
[348910411,1736871060931,-4220.93,0.00011061,2]
[348910412,1736871060941,-2444.68,0.00011061,2]
[348910413,1736871060951,-500.0,0.00011061,2]
[348910414,1736871060961,-1614.87,0.00011061,2]
[348910415,1736871060971,-4028.3,0.00011061,2]
[348910416,1736871060982,-1618.39,0.00011061,2]
[348910417,1736871060991,-886.17,0.00011061,2]
[348910418,1736871061002,-1130.9,0.00011061,2]
[348910419,1736871061013,-500.0,0.00011061,2]
[348910420,1736871061022,-500.0,0.00011061,2]
[348910421,1736871061031,-729.07,0.00011061,2]
[348910422,1736871061040,-300.0,0.00011062,2]
[348910423,1736871061049,-300.0,0.00011062,2]
[348910424,1736871061058,-300.0,0.00011062,2]
[348910425,1736871061067,-300.0,0.00011062,2]
[348910426,1736871061077,-300.0,0.00011062,2]
[348910427,1736871061087,-300.0,0.00011062,2]
[348910428,1736871061097,-1516.25,0.00011062,2]
[348910429,1736871061106,-1166.86,0.00011062,2]
[348910430,1736871061116,-866.05,0.00011062,2]
[348910431,1736871061127,-2397.33,0.00011062,2]
[348910432,1736871061137,-2203.87,0.00011062,2]
[348910433,1736871061146,-916.24,0.00011062,2]
[348910434,1736871061155,-3485.69,0.00011062,2]
[348910435,1736871061165,-1636.73,0.00011062,2]
[348910436,1736871061176,-1321.96,0.00011062,2]
[348910437,1736871061186,-3444.85,0.00011062,2]
[348910438,1736871061196,-10463.04,0.00011062,2]
[348910439,1736871061208,-500.0,0.00011062,2]
[348910440,1736871061219,-1225.56,0.00011062,2]
[348910441,1736871061229,-1265.15,0.00011062,2]
[348910442,1736871061240,-1679.51,0.00011062,2]
[348910443,1736871061250,-1588.58,0.00011062,2]
[348910444,1736871061260,-4193.47,0.00011062,2]
[348910445,1736871061271,-2969.84,0.00011062,2]
[348910446,1736871061281,-1960.51,0.00011062,2]
[348910447,1736871061290,-3425.16,0.00011062,2]
[348910448,1736871061300,-683.13,0.00011062,2]
[348910449,1736871061311,-1742.27,0.00011062,2]
[348910450,1736871061320,-2066.36,0.00011062,2]
[348910451,1736871061330,-936.52,0.00011062,2]
[348910452,1736871061340,-1668.95,0.00011062,2]
[348910453,1736871061350,-2624.9,0.00011062,2]
[348910454,1736871061359,-151.0,0.00011063,2]
[348910455,1736871061369,-1793.98,0.00011063,2]
[348910456,1736871061379,-4746.78,0.00011063,2]
[348910457,1736871061390,-2018.85,0.00011063,2]
[348910458,1736871061399,-500.0,0.00011063,2]
[348910459,1736871061408,-3920.54,0.00011063,2]
[348910460,1736871061418,-500.0,0.00011063,2]
[348910461,1736871061427,-500.0,0.00011063,2]
[348910462,1736871061438,-500.0,0.00011063,2]
[348910463,1736871061447,-583.25,0.00011063,2]
[348910464,1736871061458,-500.0,0.00011063,2]
[348910465,1736871061468,-856.09,0.00011063,2]
[348910466,1736871061477,-1159.82,0.00011063,2]
[348910467,1736871061487,-1932.24,0.00011063,2]
[348910468,1736871061496,-526.42,0.00011063,2]
[348910469,1736871061506,-862.17,0.00011063,2]
[348910470,1736871061515,-1142.27,0.00011063,2]
[348910471,1736871061524,-500.0,0.00011063,2]
[348910472,1736871061534,-1780.43,0.00011063,2]
[348910473,1736871061543,-500.0,0.00011063,2]
[348910474,1736871061553,-500.0,0.00011063,2]
[348910475,1736871061563,-500.0,0.00011063,2]
[348910476,1736871061574,-500.0,0.00011063,2]
[348910477,1736871061583,-500.0,0.00011063,2]
[348910478,1736871061593,-500.0,0.00011063,2]
[348910479,1736871061603,-1149.97,0.00011063,2]
[348910480,1736871061613,-500.0,0.00011063,2]
[348910481,1736871061622,-1199.59,0.00011063,2]
[348910482,1736871061632,-1173.44,0.00011063,2]
[348910483,1736871061643,-500.0,0.00011063,2]
[348910484,1736871061652,-500.0,0.00011063,2]
[348910485,1736871061662,-500.0,0.00011063,2]
[348910486,1736871061671,-500.0,0.00011063,2]
[348910487,1736871061681,-500.0,0.00011063,2]
[348910488,1736871061691,-1112.26,0.00011063,2]
[348910489,1736871061702,-500.0,0.00011063,2]
[348910490,1736871061711,-500.0,0.00011063,2]
[348910491,1736871061720,-500.0,0.00011063,2]
[348910492,1736871061730,-2438.93,0.00011063,2]
[348910493,1736871061739,-567.41057102,0.00011063,2]
[348910494,1736871061748,-500.0,0.00011063,2]
[348910495,1736871061759,-500.0,0.00011063,2]
[348910496,1736871061768,-1224.09,0.00011063,2]
[348910497,1736871061778,-500.0,0.00011063,2]
[348910498,1736871061787,-500.0,0.00011063,2]
[348910499,1736871061796,-500.0,0.00011063,2]
[348910500,1736871061806,-500.0,0.00011063,2]
[348910501,1736871061815,-1303.65,0.00011063,2]
[348910502,1736871061825,-500.0,0.00011063,2]
[348910503,1736871061835,-500.0,0.00011063,2]
[348910504,1736871061845,-603.91,0.00011063,2]
[348910505,1736871061855,-1278.65,0.00011063,2]
[348910506,1736871061864,-309.67839393,0.00011063,2]
[348910507,1736871061874,-500.0,0.00011063,2]
[348910508,1736871061884,-500.0,0.00011063,2]
[348910509,1736871061894,-1228.06,0.00011063,2]